[Event "Srdja Dragasevic Memorial-A 2024"]
[Site "Cetinje"]
[Date "2024.06.23"]
[Round "3.13"]
[White "Vujosevic, Vladimir"]
[Black "Pusara, Mihailo"]
[Result "1-0"]
[ECO "B52"]
[WhiteElo "2306"]
[BlackElo "2117"]
[Annotator "RC"]
[PlyCount "111"]
[EventDate "2024.06.23"]
[EventType "swiss"]
[EventCountry "MNE"]
[SourceTitle "playchess.com"]
[Source "ChessBase"]
[SourceQuality "1"]
[TimeControl "40/5400+30:1800+30"]

1. e4 {[%emt 0:00:46]} c5 {[%emt 0:00:07]} 2. Nf3 {[%emt 0:00:10]} d6 {[%emt 0:00:03]} 3. Bb5+ {[%emt 0:00:27]} Bd7 {[%emt 0:00:05]} 4. Bxd7+ {[%emt 0:00:20]} Nxd7 {[%emt 0:00:04]} 5. O-O {[%emt 0:00:21]} Ngf6 {[%emt 0:00:07]} 6. Qe2 {[%emt 0:00:21]} e6 {[%emt 0:00:06]} 7. c3 {[%emt 0:01:10]} Be7 {[%emt 0:00:12]} 8. d4 {[%emt 0:00:35]} O-O {[%emt 0:00:07]} 9. Rd1 {[%emt 0:04:23]} Rc8 {[%emt 0:02:55]} 10. e5 {[%emt 0:03:10]} Ne8 {[%emt 0:00:11]} 11. Bf4 {[%emt 0:05:34]} Nb6 {[%emt 0:04:32]} 12. exd6 {[%emt 0:08:57]} Bxd6 {[%emt 0:01:18]} 13. dxc5 {[%emt 0:00:48]} Rxc5 {[%emt 0:00:07]} 14. Na3 {[%emt 0:00:53]} Qe7 {[%emt 0:02:36]} 15. Be3 {[%emt 0:03:30]} Rc8 {[%emt 0:23:04]} 16. Nb5 {[%emt 0:01:51]} Bb8 {[%emt 0:01:11]} 17. a4 {[%emt 0:15:19]} Rd8 {[%emt 0:21:46]} 18. Rxd8 {[%emt 0:06:48]} Qxd8 {[%emt 0:00:04]} 19. Bc5 {[%emt 0:01:21]} Nd6 {[%emt 0:01:34]} 20. Rd1 {[%emt 0:02:36]} Nbc8 {[%emt 0:04:38]} 21. Ne5 {[%emt 0:09:58]} a6 {[%emt 0:19:46]} 22. Nxd6 {[%emt 0:11:25]} Bxd6 {[%emt 0:02:47]} 23. Bxd6 {[%emt 0:03:34]} Nxd6 {[%emt 0:00:18]} 24. Qd3 {[%emt 0:00:34]} f6 {[%emt 0:01:00]} 25. Qxd6 {[%emt 0:00:20]} Qxd6 {[%emt 0:00:07]} 26. Rxd6 {[%emt 0:00:09]} fxe5 {[%emt 0:14:45]} 27. Rxe6 {[%emt 0:00:24]} Rd8 {[%emt 0:00:00]} 28. Kf1 {[%emt 0:00:18]} Rd5 {[%emt 0:00:00]} 29. Rb6 {[%emt 0:00:28]} Ra5 {[%emt 0:00:00]} 30. b3 {[%emt 0:00:49]} Rc5 {[%emt 0:00:00]} 31. c4 {[%emt 0:00:11]} Rc7 {[%emt 0:00:00]} 32. Ke2 {[%emt 0:00:12]} Kf7 {[%emt 0:00:00]} 33. Ke3 {[%emt 0:00:09]} Re7 {[%emt 0:00:00]} 34. Ke4 {[%emt 0:00:24]} Ke8 {[%emt 0:00:00]} 35. Kd5 {[%emt 0:01:04]} Kd8 {[%emt 0:00:39]} 36. Re6 {[%emt 0:01:32]} Rf7 {[%emt 0:00:23]} 37. f3 {[%emt 0:00:29]} Kc7 {[%emt 0:03:10]} 38. Kxe5 {[%emt 0:03:26]} g6 {[%emt 0:00:32]} 39. Kd4 {[%emt 0:03:09]} Rf4+ {[%emt 0:00:48]} 40. Ke3 {[%emt 0:00:00]} Rf7 {[%emt 0:00:00]} 41. b4 {[%emt 0:01:19]} Kd7 {[%emt 0:01:27]} 42. Re4 {[%emt 0:00:26]} Kc6 {[%emt 0:01:33]} 43. a5 {[%emt 0:00:28]} Kc7 {[%emt 0:00:38]} 44. Re6 {[%emt 0:00:42]} Kd7 {[%emt 0:00:14]} 45. Re4 {[%emt 0:01:22]} Kc7 {[%emt 0:00:14]} 46. Kd4 {[%emt 0:00:27]} Rd7+ {[%emt 0:00:49]} 47. Kc3 {[%emt 0:00:12]} Rf7 {[%emt 0:02:51]} 48. b5 {[%emt 0:00:37]} axb5 {[%emt 0:00:33]} 49. cxb5 {[%emt 0:00:12]} Kd6 {[%emt 0:00:13]} 50. Kb4 {[%emt 0:00:21]} Rc7 {[%emt 0:01:57]} 51. Rc4 {[%emt 0:00:33]} Rf7 {[%emt 0:01:19]} 52. a6 {[%emt 0:00:30]} bxa6 {[%emt 0:00:28]} 53. bxa6 {[%emt 0:00:11]} Re7 {[%emt 0:00:22]} 54. Kb5 {[%emt 0:00:27]} Re5+ {[%emt 0:01:13]} 55. Kb6 {[%emt 0:00:14]} Re2 {[%emt 0:00:20]} 56. a7 {[%emt 0:00:33]} 1-0

[Event "Srdja Dragasevic Memorial-A 2024"]
[Site "Cetinje"]
[Date "2024.06.23"]
[Round "3.14"]
[White "Nikolic, Nebojsa"]
[Black "Willy, Stephen"]
[Result "0-1"]
[ECO "C00"]
[WhiteElo "2268"]
[BlackElo "2046"]
[Annotator "RC"]
[PlyCount "74"]
[EventDate "2024.06.23"]
[EventType "swiss"]
[EventCountry "MNE"]
[SourceTitle "playchess.com"]
[Source "ChessBase"]
[SourceQuality "1"]
[TimeControl "40/5400+30:1800+30"]

1. Nf3 {[%emt 0:06:09]} d5 {[%emt 0:00:06]} 2. g3 {[%emt 0:00:07]} Nf6 {[%emt 0:00:10]} 3. Bg2 {[%emt 0:00:08]} c5 {[%emt 0:00:05]} 4. O-O {[%emt 0:00:18]} e6 {[%emt 0:00:03]} 5. d3 {[%emt 0:01:17]} Nc6 {[%emt 0:00:21]} 6. Nbd2 {[%emt 0:00:44]} Be7 {[%emt 0:00:12]} 7. e4 {[%emt 0:00:06]} O-O {[%emt 0:00:34]} 8. Re1 {[%emt 0:00:17]} Qc7 {[%emt 0:00:25]} 9. exd5 {[%emt 0:04:02]} exd5 {[%emt 0:00:30]} 10. Nf1 {[%emt 0:01:55]} h6 {[%emt 0:07:09]} 11. Ne3 {[%emt 0:02:18]} Be6 {[%emt 0:06:59]} 12. c3 {[%emt 0:02:12]} d4 {[%emt 0:10:05]} 13. Nc4 {[%emt 0:05:56]} dxc3 {[%emt 0:02:05]} 14. Bf4 {[%emt 0:01:38]} Qd8 {[%emt 0:05:33]} 15. bxc3 {[%emt 0:00:14]} Nd5 {[%emt 0:00:39]} 16. Bd2 {[%emt 0:01:58]} Bf6 {[%emt 0:01:07]} 17. Qc2 {[%emt 0:10:23]} Qc7 {[%emt 0:18:31]} 18. a4 {[%emt 0:04:38]} Rad8 {[%emt 0:00:57]} 19. Rab1 {[%emt 0:07:45]} Rd7 {[%emt 0:03:46]} 20. Rb5 {[%emt 0:03:28]} a6 {[%emt 0:12:39]} 21. Rxc5 {[%emt 0:15:26]} Be7 {[%emt 0:00:52]} 22. Rxc6 {[%emt 0:00:19]} bxc6 {[%emt 0:00:08]} 23. Nd4 {[%emt 0:01:12]} Nb4 {[%emt 0:04:50]} 24. cxb4 {[%emt 0:04:12]} Rxd4 {[%emt 0:00:06]} 25. Bc3 {[%emt 0:09:22]} Rdd8 {[%emt 0:00:25]} 26. Qb2 {[%emt 0:00:32]} Rxd3 {[%emt 0:03:35]} 27. Bxg7 {[%emt 0:02:04]} Rfd8 {[%emt 0:00:44]} 28. Bxh6 {[%emt 0:01:24]} R3d4 {[%emt 0:00:30]} 29. Na5 {[%emt 0:05:08]} Bxb4 {[%emt 0:05:17]} 30. Nxc6 {[%emt 0:07:38]} Bxe1 {[%emt 0:00:16]} 31. Nxd4 {[%emt 0:01:06]} Bc3 {[%emt 0:00:06]} 32. Nxe6 {[%emt 0:00:29]} Rd1+ {[%emt 0:00:15]} 33. Bf1 {[%emt 0:00:05]} Qc4 {[%emt 0:00:07]} 34. Qb8+ {[%emt 0:02:01]} Kh7 {[%emt 0:00:05]} 35. Ng5+ {[%emt 0:00:53]} Kxh6 {[%emt 0:00:08]} 36. Qb6+ {[%emt 0:00:25]} Kh5 {[%emt 0:02:39]} 37. g4+ {[%emt 0:00:01]} Qxg4+ {[%emt 0:17:01]} 0-1

[Event "Srdja Dragasevic Memorial-A 2024"]
[Site "Cetinje"]
[Date "2024.06.23"]
[Round "3.15"]
[White "Vujovic, Savo"]
[Black "Soloviov, Artiom"]
[Result "1-0"]
[ECO "C50"]
[WhiteElo "2230"]
[BlackElo "1729"]
[Annotator "RC"]
[PlyCount "53"]
[EventDate "2024.06.23"]
[EventType "swiss"]
[EventCountry "MNE"]
[SourceTitle "playchess.com"]
[Source "ChessBase"]
[SourceQuality "1"]
[TimeControl "40/5400+30:1800+30"]

1. e4 {[%emt 0:08:38]} e5 {[%emt 0:00:09]} 2. Nf3 {[%emt 0:00:10]} Nc6 {[%emt 0:00:09]} 3. d4 {[%emt 0:00:06]} exd4 {[%emt 0:00:10]} 4. Bc4 {[%emt 0:00:10]} Be7 {[%emt 0:02:28]} 5. c3 {[%emt 0:01:03]} Nf6 {[%emt 0:01:32]} 6. e5 {[%emt 0:00:45]} Ne4 {[%emt 0:01:20]} 7. Bd5 {[%emt 0:00:55]} Ng5 {[%emt 0:00:42]} 8. Nxg5 {[%emt 0:00:32]} Bxg5 {[%emt 0:02:37]} 9. Qh5 {[%emt 0:00:36]} Qe7 {[%emt 0:01:44]} 10. Qxg5 {[%emt 0:00:32]} dxc3 {[%emt 0:01:59]} 11. Qxe7+ {[%emt 0:01:13]} Kxe7 {[%emt 0:00:43]} 12. Nxc3 {[%emt 0:00:34]} Nxe5 {[%emt 0:00:26]} 13. O-O {[%emt 0:00:11]} Re8 {[%emt 0:03:52]} 14. Bb3 {[%emt 0:01:42]} c6 {[%emt 0:01:21]} 15. Bf4 {[%emt 0:01:02]} Nd3 {[%emt 0:01:05]} 16. Rfe1+ {[%emt 0:00:30]} Nxe1 {[%emt 0:02:48]} 17. Rxe1+ {[%emt 0:00:04]} Kd8 {[%emt 0:00:44]} 18. Bc7+ {[%emt 0:00:08]} Kxc7 {[%emt 0:00:31]} 19. Rxe8 {[%emt 0:00:05]} a5 {[%emt 0:01:09]} 20. Bxf7 {[%emt 0:00:40]} d5 {[%emt 0:01:40]} 21. Be6 {[%emt 0:00:23]} b5 {[%emt 0:01:36]} 22. Bxc8 {[%emt 0:00:11]} Rxc8 {[%emt 0:00:11]} 23. Rxc8+ {[%emt 0:00:08]} Kxc8 {[%emt 0:00:10]} 24. Kf1 {[%emt 0:00:07]} Kd7 {[%emt 0:00:34]} 25. Ke2 {[%emt 0:00:09]} Kd6 {[%emt 0:00:39]} 26. Kd3 {[%emt 0:00:24]} b4 {[%emt 0:01:08]} 27. Na4 {[%emt 0:00:15]} 1-0

[Event "Srdja Dragasevic Memorial-A 2024"]
[Site "Cetinje"]
[Date "2024.06.23"]
[Round "3.16"]
[White "Kolmakov, Ivan D."]
[Black "Miletic, Vuk"]
[Result "1-0"]
[ECO "B30"]
[WhiteElo "1902"]
[BlackElo "2193"]
[Annotator "RC"]
[PlyCount "51"]
[EventDate "2024.06.23"]
[EventType "swiss"]
[EventCountry "MNE"]
[SourceTitle "playchess.com"]
[Source "ChessBase"]
[SourceQuality "1"]
[TimeControl "40/5400+30:1800+30"]

1. e4 {[%emt 0:00:03]} c5 {[%emt 0:08:14]} 2. Nf3 {[%emt 0:00:12]} Nc6 {[%emt 0:00:35]} 3. b4 {[%emt 0:00:06]} cxb4 {[%emt 0:07:14]} 4. d4 {[%emt 0:00:12]} d5 {[%emt 0:08:32]} 5. exd5 {[%emt 0:00:47]} Qxd5 {[%emt 0:00:02]} 6. c4 {[%emt 0:00:16]} bxc3 {[%emt 0:00:55]} 7. Nxc3 {[%emt 0:00:08]} Qa5 {[%emt 0:01:21]} 8. Rb1 {[%emt 0:00:44]} Qxc3+ {[%emt 0:10:07]} 9. Bd2 {[%emt 0:00:11]} Qa3 {[%emt 0:00:27]} 10. d5 {[%emt 0:02:43]} e6 {[%emt 0:06:13]} 11. dxc6 {[%emt 0:00:40]} bxc6 {[%emt 0:00:23]} 12. Qc2 {[%emt 0:00:15]} Qc5 {[%emt 0:24:36]} 13. Qa4 {[%emt 0:00:16]} Bd7 {[%emt 0:09:40]} 14. Bd3 {[%emt 0:03:27]} Nf6 {[%emt 0:03:47]} 15. O-O {[%emt 0:02:03]} Qh5 {[%emt 0:06:24]} 16. Bf4 {[%emt 0:06:58]} Bc5 {[%emt 0:06:02]} 17. Rfe1 {[%emt 0:11:24]} Nd5 {[%emt 0:02:34]} 18. Ne5 {[%emt 0:18:42]} Bd6 {[%emt 0:01:29]} 19. Nxd7 {[%emt 0:13:30]} Bxf4 {[%emt 0:00:07]} 20. Qxc6 {[%emt 0:00:30]} Qxh2+ {[%emt 0:00:45]} 21. Kf1 {[%emt 0:00:05]} Ke7 {[%emt 0:00:50]} 22. Rb7 {[%emt 0:06:29]} Bc7 {[%emt 0:00:15]} 23. Be4 {[%emt 0:04:06]} Qh1+ {[%emt 0:00:48]} 24. Ke2 {[%emt 0:00:05]} Qh5+ {[%emt 0:00:36]} 25. Bf3 {[%emt 0:01:21]} Rac8 {[%emt 0:00:30]} 26. Bxh5 {[%emt 0:00:15]} 1-0

[Event "Srdja Dragasevic Memorial-A 2024"]
[Site "Cetinje"]
[Date "2024.06.23"]
[Round "3.17"]
[White "Levi, Netanel"]
[Black "Djurovic, Peko"]
[Result "1/2-1/2"]
[ECO "B31"]
[WhiteElo "2152"]
[BlackElo "2292"]
[Annotator "RC"]
[PlyCount "97"]
[EventDate "2024.06.23"]
[EventType "swiss"]
[EventCountry "MNE"]
[SourceTitle "playchess.com"]
[Source "ChessBase"]
[SourceQuality "1"]
[TimeControl "40/5400+30:1800+30"]

1. e4 {[%emt 0:03:47]} c5 {[%emt 0:04:15]} 2. Nf3 {[%emt 0:00:06]} Nc6 {[%emt 0:00:11]} 3. Bb5 {[%emt 0:00:07]} g6 {[%emt 0:00:09]} 4. Bxc6 {[%emt 0:00:05]} dxc6 {[%emt 0:00:04]} 5. d3 {[%emt 0:00:07]} Bg7 {[%emt 0:00:04]} 6. h3 {[%emt 0:00:05]} Nf6 {[%emt 0:00:04]} 7. Nc3 {[%emt 0:00:05]} Nd7 {[%emt 0:00:04]} 8. Be3 {[%emt 0:00:08]} e5 {[%emt 0:00:05]} 9. Qd2 {[%emt 0:00:06]} h6 {[%emt 0:00:03]} 10. O-O {[%emt 0:00:07]} Qe7 {[%emt 0:00:15]} 11. Nh2 {[%emt 0:00:29]} Nf8 {[%emt 0:00:06]} 12. f4 {[%emt 0:00:06]} exf4 {[%emt 0:00:10]} 13. Bxf4 {[%emt 0:00:01]} Ne6 {[%emt 0:00:07]} 14. Bg3 {[%emt 0:00:07]} Nd4 {[%emt 0:03:38]} 15. Rae1 {[%emt 0:00:11]} O-O {[%emt 0:00:09]} 16. Nd1 {[%emt 0:00:26]} b6 {[%emt 0:01:52]} 17. c3 {[%emt 0:00:51]} Ne6 {[%emt 0:00:17]} 18. e5 {[%emt 0:01:40]} Ba6 {[%emt 0:06:35]} 19. Ng4 {[%emt 0:11:35]} Qg5 {[%emt 0:07:49]} 20. Re3 {[%emt 0:13:50]} Rad8 {[%emt 0:06:07]} 21. Ndf2 {[%emt 0:01:46]} Bxd3 {[%emt 0:06:28]} 22. Nxd3 {[%emt 0:13:02]} c4 {[%emt 0:00:09]} 23. Qf2 {[%emt 0:00:42]} Rxd3 {[%emt 0:02:33]} 24. Rxd3 {[%emt 0:01:35]} cxd3 {[%emt 0:00:05]} 25. Bh4 {[%emt 0:00:06]} Qf5 {[%emt 0:05:02]} 26. Qe3 {[%emt 0:01:41]} Qh5 {[%emt 0:00:09]} 27. Nf6+ {[%emt 0:02:15]} Bxf6 {[%emt 0:00:08]} 28. Bxf6 {[%emt 0:00:02]} g5 {[%emt 0:01:35]} 29. Qxd3 {[%emt 0:01:49]} Qg6 {[%emt 0:00:29]} 30. Qxg6+ {[%emt 0:04:24]} fxg6 {[%emt 0:00:06]} 31. Rd1 {[%emt 0:00:33]} Nf4 {[%emt 0:01:33]} 32. Rd7 {[%emt 0:05:30]} Rf7 {[%emt 0:00:27]} 33. Rd6 {[%emt 0:00:52]} c5 {[%emt 0:00:11]} 34. a4 {[%emt 0:11:12]} Rf8 {[%emt 0:07:10]} 35. Rd7 {[%emt 0:04:49]} Rf7 {[%emt 0:00:57]} 36. Rd6 {[%emt 0:00:01]} Rf8 {[%emt 0:00:12]} 37. Rc6 {[%emt 0:00:46]} Nd5 {[%emt 0:02:47]} 38. Kf2 {[%emt 0:03:13]} Nxf6 {[%emt 0:01:33]} 39. exf6 {[%emt 0:01:18]} Kf7 {[%emt 0:00:04]} 40. a5 {[%emt 0:00:00]} bxa5 {[%emt 0:00:00]} 41. Rxc5 {[%emt 0:00:45]} Rb8 {[%emt 0:00:39]} 42. Rxa5 {[%emt 0:01:56]} Rxb2+ {[%emt 0:00:14]} 43. Kf3 {[%emt 0:00:33]} Rb7 {[%emt 0:00:41]} 44. Ra6 {[%emt 0:01:10]} Rc7 {[%emt 0:00:06]} 45. Ke4 {[%emt 0:00:15]} Rxc3 {[%emt 0:00:33]} 46. Rxa7+ {[%emt 0:00:06]} Kxf6 {[%emt 0:00:04]} 47. Ra6+ {[%emt 0:00:07]} Kf7 {[%emt 0:00:06]} 48. Ra7+ {[%emt 0:00:04]} Kf6 {[%emt 0:00:28]} 49. Ra6+ {[%emt 0:00:03]} 1/2-1/2

[Event "Srdja Dragasevic Memorial-A 2024"]
[Site "Cetinje"]
[Date "2024.06.23"]
[Round "3.18"]
[White "Alimpic, Aleksa"]
[Black "Popovic, Mateja"]
[Result "1-0"]
[ECO "D37"]
[WhiteElo "2281"]
[BlackElo "1929"]
[Annotator "RC"]
[PlyCount "60"]
[EventDate "2024.06.23"]
[EventType "swiss"]
[EventCountry "MNE"]
[SourceTitle "playchess.com"]
[Source "ChessBase"]
[SourceQuality "1"]
[TimeControl "40/5400+30:1800+30"]

1. d4 {[%emt 0:00:09]} d5 {[%emt 0:00:23]} 2. c4 {[%emt 0:00:11]} e6 {[%emt 0:00:06]} 3. Nf3 {[%emt 0:00:06]} Nf6 {[%emt 0:00:14]} 4. Nc3 {[%emt 0:00:06]} Be7 {[%emt 0:00:13]} 5. Bf4 {[%emt 0:00:06]} a6 {[%emt 0:01:18]} 6. c5 {[%emt 0:00:45]} O-O {[%emt 0:02:10]} 7. e3 {[%emt 0:00:40]} Nbd7 {[%emt 0:03:03]} 8. h3 {[%emt 0:01:18]} c6 {[%emt 0:05:08]} 9. Bd3 {[%emt 0:00:41]} b6 {[%emt 0:01:20]} 10. b4 {[%emt 0:00:19]} Re8 {[%emt 0:01:46]} 11. O-O {[%emt 0:01:13]} bxc5 {[%emt 0:04:23]} 12. bxc5 {[%emt 0:00:13]} Bxc5 {[%emt 0:00:40]} 13. Qa4 {[%emt 0:17:08]} Ba7 {[%emt 0:22:51]} 14. Qxc6 {[%emt 0:07:00]} Nb6 {[%emt 0:00:15]} 15. Rfc1 {[%emt 0:03:40]} Bd7 {[%emt 0:02:37]} 16. Qb7 {[%emt 0:00:51]} Bc8 {[%emt 0:02:03]} 17. Qc7 {[%emt 0:00:48]} Bb8 {[%emt 0:00:39]} 18. Qxd8 {[%emt 0:00:42]} Rxd8 {[%emt 0:00:05]} 19. Ne5 {[%emt 0:03:37]} Bd7 {[%emt 0:03:44]} 20. Ne2 {[%emt 0:07:43]} h6 {[%emt 0:04:46]} 21. Rab1 {[%emt 0:01:22]} Nc8 {[%emt 0:04:07]} 22. Nxf7 {[%emt 0:04:54]} Kxf7 {[%emt 0:03:03]} 23. Rxb8 {[%emt 0:01:11]} Ne7 {[%emt 0:02:26]} 24. Rxd8 {[%emt 0:01:35]} Rxd8 {[%emt 0:00:05]} 25. Rc7 {[%emt 0:04:19]} Rc8 {[%emt 0:03:20]} 26. Rb7 {[%emt 0:03:51]} Bb5 {[%emt 0:05:26]} 27. Bxb5 {[%emt 0:02:08]} axb5 {[%emt 0:00:19]} 28. Bd6 {[%emt 0:00:40]} Nfg8 {[%emt 0:00:43]} 29. Bc5 {[%emt 0:01:04]} Ra8 {[%emt 0:02:20]} 30. a3 {[%emt 0:00:19]} Rc8 {[%emt 0:25:57]} 1-0